[Event "*** Titled Tuesday Blitz"]
[Site "Chess.com"]
[Date "2020.03.03"]
[Round "3"]
[White "mitraasz"]
[Black "WeAintSurePal"]
[Result "1/2-1/2"]
[WhiteElo "2057"]
[BlackElo "2316"]
[TimeControl "180+1"]
[EndTime "9:34:18 PST"]
[Termination "Game drawn by 50-move rule"]

1. d4 {[%clk 0:02:58.9]} 1... d5 {[%clk 0:02:59]} 2. Nf3 {[%clk 0:02:58.6]} 2...
c6 {[%clk 0:02:59.9]} 3. e3 {[%clk 0:02:58.3]} 3... f5 {[%clk 0:02:59.1]} 4. b3
{[%clk 0:02:54.8]} 4... Nf6 {[%clk 0:02:58.1]} 5. Bd3 {[%clk 0:02:49.5]} 5... e6
{[%clk 0:02:58.3]} 6. O-O {[%clk 0:02:49.2]} 6... Bd6 {[%clk 0:02:58.3]} 7. Ba3
{[%clk 0:02:48.9]} 7... O-O {[%clk 0:02:58.2]} 8. Bxd6 {[%clk 0:02:46.7]} 8...
Qxd6 {[%clk 0:02:59.1]} 9. Ne5 {[%clk 0:02:46.8]} 9... Nbd7 {[%clk 0:02:59.3]}
10. f4 {[%clk 0:02:46.1]} 10... Ne4 {[%clk 0:02:59.6]} 11. Nd2 {[%clk
0:02:44.7]} 11... Ndf6 {[%clk 0:03:00]} 12. Ndf3 {[%clk 0:02:43.9]} 12... Qe7
{[%clk 0:02:57.7]} 13. c4 {[%clk 0:02:40.7]} 13... Bd7 {[%clk 0:02:57.1]} 14.
Rc1 {[%clk 0:02:39.6]} 14... Be8 {[%clk 0:02:55.5]} 15. Qe2 {[%clk 0:02:35.7]}
15... Bh5 {[%clk 0:02:55]} 16. Rc2 {[%clk 0:02:34.2]} 16... Nd6 {[%clk
0:02:54.6]} 17. Rfc1 {[%clk 0:02:26.1]} 17... Rae8 {[%clk 0:02:52.8]} 18. cxd5
{[%clk 0:02:25.9]} 18... exd5 {[%clk 0:02:53.7]} 19. b4 {[%clk 0:02:23.1]} 19...
a6 {[%clk 0:02:52.3]} 20. a4 {[%clk 0:02:23.3]} 20... Bxf3 {[%clk 0:02:46.5]}
21. gxf3 {[%clk 0:02:18]} 21... Kh8 {[%clk 0:02:41.4]} 22. Kh1 {[%clk
0:02:15.5]} 22... Nh5 {[%clk 0:02:38]} 23. Qf2 {[%clk 0:02:12]} 23... Rf6 {[%clk
0:02:25.7]} 24. Rg1 {[%clk 0:02:08.8]} 24... Rg8 {[%clk 0:02:18.3]} 25. Rg5
{[%clk 0:02:06.5]} 25... Rh6 {[%clk 0:02:17.2]} 26. Qh4 {[%clk 0:01:59.9]} 26...
Nf7 {[%clk 0:01:57.5]} 27. Rxh5 {[%clk 0:01:56.8]} 27... Qf8 {[%clk 0:01:51]}
28. Rxh6 {[%clk 0:01:49.5]} 28... Nxh6 {[%clk 0:01:48.6]} 29. Rg2 {[%clk
0:01:49]} 29... Qxb4 {[%clk 0:01:42.4]} 30. Qxh6 {[%clk 0:01:39.9]} 30... Qe1+
{[%clk 0:01:41.4]} 31. Rg1 {[%clk 0:01:40.1]} 31... Qxg1+ {[%clk 0:01:38.5]} 32.
Kxg1 {[%clk 0:01:40.8]} 32... gxh6+ {[%clk 0:01:39.4]} 33. Kf2 {[%clk 0:01:41]}
33... Rf8 {[%clk 0:01:39]} 34. Nd7 {[%clk 0:01:38.6]} 34... Rf7 {[%clk
0:01:36.6]} 35. Nc5 {[%clk 0:01:38.1]} 35... Kg7 {[%clk 0:01:35.4]} 36. Kg3
{[%clk 0:01:38]} 36... Kf6 {[%clk 0:01:35.3]} 37. e4 {[%clk 0:01:37.7]} 37...
fxe4 {[%clk 0:01:30.8]} 38. fxe4 {[%clk 0:01:34.6]} 38... dxe4 {[%clk
0:01:29.4]} 39. Bxe4 {[%clk 0:01:34.4]} 39... Re7 {[%clk 0:01:26.9]} 40. Kf3
{[%clk 0:01:32.8]} 40... h5 {[%clk 0:01:20.7]} 41. d5 {[%clk 0:01:32.1]} 41...
cxd5 {[%clk 0:01:18.8]} 42. Bxd5 {[%clk 0:01:32.8]} 42... Rc7 {[%clk 0:01:12.2]}
43. Nxb7 {[%clk 0:01:27.9]} 43... Rc3+ {[%clk 0:01:11.6]} 44. Ke4 {[%clk
0:01:26.3]} 44... Rh3 {[%clk 0:01:11.2]} 45. Nc5 {[%clk 0:01:25]} 45... Rxh2
{[%clk 0:01:08.1]} 46. Nxa6 {[%clk 0:01:24.9]} 46... Re2+ {[%clk 0:01:07.5]} 47.
Kd3 {[%clk 0:01:23.6]} 47... Rf2 {[%clk 0:01:07.3]} 48. Ke3 {[%clk 0:01:22.2]}
48... Rc2 {[%clk 0:01:07.3]} 49. Nb4 {[%clk 0:01:20.7]} 49... Rc5 {[%clk
0:01:06]} 50. Kd4 {[%clk 0:01:18.6]} 50... Ra5 {[%clk 0:01:05.4]} 51. Bc6 {[%clk
0:01:16.1]} 51... Kf5 {[%clk 0:01:04.8]} 52. Nd5 {[%clk 0:01:14.2]} 52... h4
{[%clk 0:01:01.5]} 53. Ne3+ {[%clk 0:01:13.4]} 53... Kf6 {[%clk 0:01:01.5]} 54.
Nc4 {[%clk 0:01:13.5]} 54... Ra7 {[%clk 0:00:59]} 55. a5 {[%clk 0:01:13.3]}
55... h3 {[%clk 0:00:58.2]} 56. Kc5 {[%clk 0:01:13.3]} 56... Rc7 {[%clk
0:00:47.3]} 57. Nd2 {[%clk 0:01:01.3]} 57... h2 {[%clk 0:00:43.5]} 58. Ne4+
{[%clk 0:01:00.4]} 58... Kf5 {[%clk 0:00:41.5]} 59. Nf2 {[%clk 0:01:00.6]} 59...
h5 {[%clk 0:00:31.2]} 60. Kb6 {[%clk 0:01:00.4]} 60... Rg7 {[%clk 0:00:29.6]}
61. a6 {[%clk 0:01:00.2]} 61... Kxf4 {[%clk 0:00:28.4]} 62. Bb7 {[%clk
0:00:58.4]} 62... Rg6+ {[%clk 0:00:26.6]} 63. Bc6 {[%clk 0:00:57.5]} 63... Ke3
{[%clk 0:00:24.7]} 64. Nh1 {[%clk 0:00:56]} 64... Rg7 {[%clk 0:00:20.3]} 65. a7
{[%clk 0:00:55.5]} 65... Rxa7 {[%clk 0:00:19.8]} 66. Kxa7 {[%clk 0:00:55.8]}
66... Ke2 {[%clk 0:00:18.8]} 67. Kb6 {[%clk 0:00:55.8]} 67... h4 {[%clk
0:00:19.7]} 68. Kc5 {[%clk 0:00:56]} 68... Kf1 {[%clk 0:00:20.6]} 69. Kd4 {[%clk
0:00:56]} 69... Kg1 {[%clk 0:00:21.5]} 70. Ke3 {[%clk 0:00:55.2]} 70... h3
{[%clk 0:00:21.2]} 71. Kf4 {[%clk 0:00:55.3]} 71... Kf1 {[%clk 0:00:19.9]} 72.
Kg4 {[%clk 0:00:55.5]} 72... Kg1 {[%clk 0:00:20.8]} 73. Kxh3 {[%clk 0:00:55.3]}
73... Kf1 {[%clk 0:00:20.9]} 74. Kxh2 {[%clk 0:00:56]} 74... Ke2 {[%clk
0:00:21.3]} 75. Kg3 {[%clk 0:00:56.1]} 75... Ke3 {[%clk 0:00:21.7]} 76. Nf2
{[%clk 0:00:56.4]} 76... Ke2 {[%clk 0:00:21.8]} 77. Bd5 {[%clk 0:00:53.6]} 77...
Ke3 {[%clk 0:00:22.7]} 78. Ng4+ {[%clk 0:00:53.3]} 78... Kd4 {[%clk 0:00:22.4]}
79. Bf7 {[%clk 0:00:52.5]} 79... Kc3 {[%clk 0:00:20.3]} 80. Kf3 {[%clk
0:00:52.4]} 80... Kd4 {[%clk 0:00:20.6]} 81. Kf4 {[%clk 0:00:52.7]} 81... Kd3
{[%clk 0:00:20.2]} 82. Ne5+ {[%clk 0:00:51.6]} 82... Kd4 {[%clk 0:00:21.1]} 83.
Bg6 {[%clk 0:00:51.2]} 83... Kc3 {[%clk 0:00:21]} 84. Ke4 {[%clk 0:00:50.7]}
84... Kc2 {[%clk 0:00:20.5]} 85. Kd4+ {[%clk 0:00:50.6]} 85... Kd2 {[%clk
0:00:20.2]} 86. Nc4+ {[%clk 0:00:47.8]} 86... Kc1 {[%clk 0:00:20.5]} 87. Kc3
{[%clk 0:00:47.3]} 87... Kd1 {[%clk 0:00:20.6]} 88. Nd2 {[%clk 0:00:43.7]} 88...
Ke2 {[%clk 0:00:21.5]} 89. Be4 {[%clk 0:00:43.4]} 89... Ke3 {[%clk 0:00:22.4]}
90. Bc6 {[%clk 0:00:43.2]} 90... Kf4 {[%clk 0:00:22.2]} 91. Kd4 {[%clk 0:00:43]}
91... Kf5 {[%clk 0:00:22.4]} 92. Ne4 {[%clk 0:00:40]} 92... Ke6 {[%clk
0:00:21.8]} 93. Bd5+ {[%clk 0:00:39.4]} 93... Kf5 {[%clk 0:00:22]} 94. Nc5
{[%clk 0:00:39.1]} 94... Kf4 {[%clk 0:00:21.7]} 95. Nd3+ {[%clk 0:00:39.1]}
95... Kf5 {[%clk 0:00:22.6]} 96. Be4+ {[%clk 0:00:38.1]} 96... Kf6 {[%clk
0:00:22.4]} 97. Kd5 {[%clk 0:00:38.5]} 97... Kg5 {[%clk 0:00:22]} 98. Ke5 {[%clk
0:00:38]} 98... Kh6 {[%clk 0:00:21.1]} 99. Kf6 {[%clk 0:00:37.5]} 99... Kh5
{[%clk 0:00:20.7]} 100. Ne5 {[%clk 0:00:26.5]} 100... Kh4 {[%clk 0:00:20.3]}
101. Kf5 {[%clk 0:00:24.3]} 101... Kg3 {[%clk 0:00:21.2]} 102. Kg5 {[%clk
0:00:24.4]} 102... Kf2 {[%clk 0:00:22.1]} 103. Kf4 {[%clk 0:00:24.6]} 103... Ke2
{[%clk 0:00:22.1]} 104. Nf3 {[%clk 0:00:22.2]} 104... Kd1 {[%clk 0:00:21.3]}
105. Ke3 {[%clk 0:00:22.5]} 105... Kc1 {[%clk 0:00:21.1]} 106. Kd3 {[%clk
0:00:20.1]} 106... Kb2 {[%clk 0:00:22]} 107. Nd2 {[%clk 0:00:20.4]} 107... Ka3
{[%clk 0:00:21.4]} 108. Kc3 {[%clk 0:00:20.7]} 108... Ka4 {[%clk 0:00:20.7]}
109. Kc4 {[%clk 0:00:17.8]} 109... Ka3 {[%clk 0:00:20.4]} 110. Kc3 {[%clk
0:00:17.7]} 110... Ka2 {[%clk 0:00:20.1]} 111. Nb3 {[%clk 0:00:14.9]} 111... Ka3
{[%clk 0:00:20]} 112. Nd4 {[%clk 0:00:15]} 112... Ka4 {[%clk 0:00:19.2]} 113.
Kc4 {[%clk 0:00:13.7]} 113... Ka3 {[%clk 0:00:19]} 114. Kc3 {[%clk 0:00:13.3]}
114... Ka2 {[%clk 0:00:18.6]} 115. Bc2 {[%clk 0:00:11.8]} 115... Ka1 {[%clk
0:00:18.3]} 116. Nb3+ {[%clk 0:00:08.5]} 116... Ka2 {[%clk 0:00:19.2]} 117. Bd1
{[%clk 0:00:08.8]} 117... Kb1 {[%clk 0:00:17.7]} 118. Bc2+ {[%clk 0:00:09.4]}
118... Ka2 {[%clk 0:00:18.6]} 119. Be4 {[%clk 0:00:10.1]} 119... Ka3 {[%clk
0:00:18.2]} 120. Bd5 {[%clk 0:00:10.8]} 120... Ka2 {[%clk 0:00:18.8]} 121. Nd2+
{[%clk 0:00:10.5]} 121... Ka1 {[%clk 0:00:18.9]} 122. Be4 {[%clk 0:00:10.7]}
122... Ka2 {[%clk 0:00:18.3]} 123. Nc4 {[%clk 0:00:10.7]} 123... Ka1 {[%clk
0:00:17.9]} 124. Nd2 {[%clk 0:00:10.4]} 1/2-1/2

[Event "*** Titled Tuesday Blitz"]
[Site "Chess.com"]
[Date "2020.03.03"]
[Round "4"]
[White "Boorchess"]
[Black "saisree"]
[Result "1-0"]
[WhiteElo "2520"]
[BlackElo "2293"]
[TimeControl "180+1"]
[EndTime "9:36:13 PST"]
[Termination "Boorchess won by resignation"]

1. c4 {[%clk 0:03:00.9]} 1... c6 {[%clk 0:03:00]} 2. d4 {[%clk 0:02:59.8]} 2...
d5 {[%clk 0:03:00.3]} 3. Nc3 {[%clk 0:02:59.2]} 3... Nf6 {[%clk 0:03:00.6]} 4.
cxd5 {[%clk 0:02:58.8]} 4... cxd5 {[%clk 0:03:00.3]} 5. f3 {[%clk 0:02:58.8]}
5... Nc6 {[%clk 0:02:50.2]} 6. e4 {[%clk 0:02:58.3]} 6... e5 {[%clk 0:02:45.1]}
7. dxe5 {[%clk 0:02:57.9]} 7... Nxe5 {[%clk 0:02:45.1]} 8. f4 {[%clk 0:02:58]}
8... Ng6 {[%clk 0:02:16.5]} 9. e5 {[%clk 0:02:53.9]} 9... Bg4 {[%clk 0:02:07.3]}
10. Bb5+ {[%clk 0:02:51.6]} 10... Nd7 {[%clk 0:02:07.4]} 11. Qxg4 {[%clk
0:02:49.5]} 1-0

[Event "*** Titled Tuesday Blitz"]
[Site "Chess.com"]
[Date "2020.03.03"]
[Round "4"]
[White "RitvarsReimanis"]
[Black "Anton_Demchenko"]
[Result "0-1"]
[WhiteElo "2618"]
[BlackElo "2975"]
[TimeControl "180+1"]
[EndTime "9:36:42 PST"]
[Termination "Anton_Demchenko won by resignation"]

1. d4 {[%clk 0:03:00.3]} 1... Nf6 {[%clk 0:02:59.6]} 2. c4 {[%clk 0:03:00.8]}
2... g6 {[%clk 0:02:59.9]} 3. Nc3 {[%clk 0:03:00.4]} 3... Bg7 {[%clk 0:03:00.5]}
4. e4 {[%clk 0:03:00.5]} 4... O-O {[%clk 0:03:01.4]} 5. Nf3 {[%clk 0:03:00.5]}
5... d6 {[%clk 0:03:01.6]} 6. Be2 {[%clk 0:03:01.1]} 6... e5 {[%clk 0:03:00.9]}
7. O-O {[%clk 0:03:01.2]} 7... Na6 {[%clk 0:03:00.8]} 8. d5 {[%clk 0:02:50.3]}
8... Nc5 {[%clk 0:03:00.2]} 9. Qc2 {[%clk 0:02:47.9]} 9... a5 {[%clk 0:03:00.3]}
10. Be3 {[%clk 0:02:47.1]} 10... b6 {[%clk 0:02:59.5]} 11. Ne1 {[%clk
0:02:43.1]} 11... Bd7 {[%clk 0:02:56.9]} 12. b3 {[%clk 0:02:39.7]} 12... Qe7
{[%clk 0:02:45.9]} 13. Rb1 {[%clk 0:02:39.8]} 13... Nfxe4 {[%clk 0:02:37.9]} 14.
Nd3 {[%clk 0:02:28.6]} 14... Nxc3 {[%clk 0:02:33.6]} 15. Qxc3 {[%clk 0:02:27.9]}
15... e4 {[%clk 0:02:33.4]} 0-1

[Event "*** Titled Tuesday Blitz"]
[Site "Chess.com"]
[Date "2020.03.03"]
[Round "4"]
[White "AndrewMaco"]
[Black "Misha_Bilous"]
[Result "0-1"]
[WhiteElo "2658"]
[BlackElo "2473"]
[TimeControl "180+1"]
[EndTime "9:37:36 PST"]
[Termination "Misha_Bilous won by resignation"]

1. e4 {[%clk 0:03:00.5]} 1... c5 {[%clk 0:02:59.8]} 2. Nf3 {[%clk 0:03:00.2]}
2... d6 {[%clk 0:03:00.2]} 3. d4 {[%clk 0:02:59.4]} 3... cxd4 {[%clk 0:03:01.1]}
4. Nxd4 {[%clk 0:03:00.3]} 4... Nf6 {[%clk 0:03:01.7]} 5. Nc3 {[%clk 0:02:59.3]}
5... a6 {[%clk 0:03:02.3]} 6. f3 {[%clk 0:02:59.9]} 6... e5 {[%clk 0:03:02.1]}
7. Nb3 {[%clk 0:03:00.4]} 7... Be6 {[%clk 0:03:02.4]} 8. Be3 {[%clk 0:03:01]}
8... h5 {[%clk 0:03:02.1]} 9. Nd5 {[%clk 0:03:01.3]} 9... Bxd5 {[%clk 0:03:00]}
10. exd5 {[%clk 0:03:02.2]} 10... g6 {[%clk 0:02:59.4]} 11. Qd2 {[%clk
0:03:02.7]} 11... Bg7 {[%clk 0:02:59.4]} 12. O-O-O {[%clk 0:03:03.2]} 12... O-O
{[%clk 0:02:55]} 13. Kb1 {[%clk 0:03:03.5]} 13... Nbd7 {[%clk 0:02:54.7]} 14.
Be2 {[%clk 0:03:03.8]} 14... Rc8 {[%clk 0:02:46.6]} 15. g4 {[%clk 0:03:04]}
15... Nb6 {[%clk 0:02:43.4]} 16. Bg5 {[%clk 0:02:49.5]} 16... Qe8 {[%clk
0:02:25.3]} 17. Bxf6 {[%clk 0:02:48.1]} 17... Bxf6 {[%clk 0:02:26.2]} 18. gxh5
{[%clk 0:02:48.9]} 18... e4 {[%clk 0:02:26.7]} 19. fxe4 {[%clk 0:02:41.6]} 19...
Na4 {[%clk 0:02:03.8]} 20. c3 {[%clk 0:02:39.3]} 20... Rxc3 {[%clk 0:01:57]} 21.
bxc3 {[%clk 0:02:34.2]} 21... Nxc3+ {[%clk 0:01:57.1]} 22. Kc1 {[%clk
0:02:33.7]} 22... Nxd1 {[%clk 0:01:53.8]} 23. Rxd1 {[%clk 0:02:31.5]} 23... Qxe4
{[%clk 0:01:51.2]} 24. hxg6 {[%clk 0:02:24]} 24... Rc8+ {[%clk 0:01:46.9]} 0-1

[Event "*** Titled Tuesday Blitz"]
[Site "Chess.com"]
[Date "2020.03.03"]
[Round "4"]
[White "Sven_Tica"]
[Black "juniortay"]
[Result "0-1"]
[WhiteElo "2664"]
[BlackElo "2500"]
[TimeControl "180+1"]
[EndTime "9:37:50 PST"]
[Termination "juniortay won by resignation"]

1. d4 {[%clk 0:03:00.9]} 1... d5 {[%clk 0:02:59.1]} 2. c4 {[%clk 0:03:01.6]}
2... e6 {[%clk 0:02:59.4]} 3. Nf3 {[%clk 0:03:02.2]} 3... c5 {[%clk 0:02:59.4]}
4. cxd5 {[%clk 0:03:01.6]} 4... exd5 {[%clk 0:03:00.3]} 5. g3 {[%clk 0:03:00.7]}
5... Nc6 {[%clk 0:03:00.8]} 6. Bg2 {[%clk 0:03:00.9]} 6... Nf6 {[%clk
0:03:01.4]} 7. O-O {[%clk 0:03:01.2]} 7... cxd4 {[%clk 0:03:01.8]} 8. Nxd4
{[%clk 0:03:00.9]} 8... Bc5 {[%clk 0:03:02.4]} 9. Nxc6 {[%clk 0:02:55.4]} 9...
bxc6 {[%clk 0:03:03.3]} 10. Nc3 {[%clk 0:02:55.9]} 10... O-O {[%clk 0:03:01.9]}
11. b3 {[%clk 0:02:56]} 11... Ba6 {[%clk 0:03:01.5]} 12. Bb2 {[%clk 0:02:55.9]}
12... Re8 {[%clk 0:03:01.6]} 13. Rc1 {[%clk 0:02:55.4]} 13... Bb6 {[%clk
0:02:53.3]} 14. Bf3 {[%clk 0:02:41.7]} 14... h5 {[%clk 0:02:49.8]} 15. h4 {[%clk
0:02:40.9]} 15... Ng4 {[%clk 0:02:45.8]} 16. Na4 {[%clk 0:02:35.1]} 16... Qd6
{[%clk 0:02:28]} 17. Nxb6 {[%clk 0:02:24.7]} 17... axb6 {[%clk 0:02:28.9]} 18.
Qd4 {[%clk 0:02:25]} 18... f6 {[%clk 0:02:18.1]} 19. Rfe1 {[%clk 0:02:20]} 19...
Rab8 {[%clk 0:01:56.7]} 20. e4 {[%clk 0:02:13.8]} 20... Ne5 {[%clk 0:01:46.1]}
21. Be2 {[%clk 0:02:01.4]} 21... Bxe2 {[%clk 0:01:42.6]} 22. Rxe2 {[%clk
0:02:02.3]} 22... Nf3+ {[%clk 0:01:42.5]} 0-1

[Event "*** Titled Tuesday Blitz"]
[Site "Chess.com"]
[Date "2020.03.03"]
[Round "4"]
[White "rogapa"]
[Black "AleksanderHnydiuk"]
[Result "1-0"]
[WhiteElo "2748"]
[BlackElo "2560"]
[TimeControl "180+1"]
[EndTime "9:38:15 PST"]
[Termination "rogapa won by resignation"]

1. e4 {[%clk 0:03:00]} 1... c5 {[%clk 0:02:59.8]} 2. Nf3 {[%clk 0:02:59.9]} 2...
e6 {[%clk 0:03:00]} 3. d4 {[%clk 0:03:00.8]} 3... cxd4 {[%clk 0:03:00.3]} 4.
Nxd4 {[%clk 0:03:01.7]} 4... Nc6 {[%clk 0:03:00.9]} 5. Nc3 {[%clk 0:03:01.6]}
5... a6 {[%clk 0:03:01.1]} 6. Nxc6 {[%clk 0:03:00.9]} 6... bxc6 {[%clk 0:03:02]}
7. Bd3 {[%clk 0:03:01.2]} 7... d5 {[%clk 0:03:02.5]} 8. O-O {[%clk 0:03:02.1]}
8... Nf6 {[%clk 0:03:03]} 9. Qf3 {[%clk 0:03:00.7]} 9... Be7 {[%clk 0:03:02.7]}
10. Qg3 {[%clk 0:02:59]} 10... O-O {[%clk 0:03:02.7]} 11. Bh6 {[%clk 0:02:58.4]}
11... Ne8 {[%clk 0:03:02.9]} 12. Bf4 {[%clk 0:02:56.5]} 12... Bb7 {[%clk
0:03:02.6]} 13. Rad1 {[%clk 0:02:49.7]} 13... Bh4 {[%clk 0:02:56.6]} 14. Qh3
{[%clk 0:02:47.1]} 14... h6 {[%clk 0:02:41.5]} 15. Na4 {[%clk 0:02:23.4]} 15...
Bg5 {[%clk 0:02:29.9]} 16. Bxg5 {[%clk 0:02:18.6]} 16... Qxg5 {[%clk 0:02:30.8]}
17. Nc5 {[%clk 0:02:18.1]} 17... Qe7 {[%clk 0:02:31.3]} 18. b4 {[%clk
0:02:14.1]} 18... a5 {[%clk 0:02:30.4]} 19. a3 {[%clk 0:02:13.5]} 19... axb4
{[%clk 0:02:27]} 20. axb4 {[%clk 0:02:14.4]} 20... Nc7 {[%clk 0:02:09.2]} 21.
Nxb7 {[%clk 0:01:56.9]} 21... Qxb4 {[%clk 0:02:08.9]} 22. Rb1 {[%clk 0:01:56.6]}
22... Qe7 {[%clk 0:02:08.5]} 23. Qe3 {[%clk 0:01:53]} 1-0

[Event "*** Titled Tuesday Blitz"]
[Site "Chess.com"]
[Date "2020.03.03"]
[Round "4"]
[White "pouya21"]
[Black "Reshetkov"]
[Result "1-0"]
[WhiteElo "2732"]
[BlackElo "2552"]
[TimeControl "180+1"]
[EndTime "9:38:16 PST"]
[Termination "pouya21 won by resignation"]

1. e4 {[%clk 0:03:00.7]} 1... Nf6 {[%clk 0:02:56.1]} 2. e5 {[%clk 0:02:59.8]}
2... Nd5 {[%clk 0:02:55.7]} 3. d4 {[%clk 0:02:59.6]} 3... d6 {[%clk 0:02:56.1]}
4. Nf3 {[%clk 0:02:58.6]} 4... g6 {[%clk 0:02:55.8]} 5. Bc4 {[%clk 0:02:57.6]}
5... Nb6 {[%clk 0:02:55.5]} 6. Bb3 {[%clk 0:02:57.4]} 6... Bg7 {[%clk
0:02:55.7]} 7. Qe2 {[%clk 0:02:54.4]} 7... d5 {[%clk 0:02:44.9]} 8. c3 {[%clk
0:02:45.3]} 8... Bf5 {[%clk 0:02:43.1]} 9. Be3 {[%clk 0:02:44.7]} 9... Na6
{[%clk 0:02:40.3]} 10. Nbd2 {[%clk 0:02:44.1]} 10... Rc8 {[%clk 0:02:39]} 11.
Nh4 {[%clk 0:02:42.1]} 11... Bd7 {[%clk 0:02:22.9]} 12. f4 {[%clk 0:02:41.9]}
12... e6 {[%clk 0:02:21.4]} 13. Nhf3 {[%clk 0:02:39.4]} 13... c5 {[%clk
0:02:21.4]} 14. O-O {[%clk 0:02:30]} 14... O-O {[%clk 0:02:18.2]} 15. Qf2 {[%clk
0:02:26.4]} 15... cxd4 {[%clk 0:02:15.6]} 16. Bxd4 {[%clk 0:02:23.4]} 16... Na4
{[%clk 0:02:10.5]} 17. Bxa4 {[%clk 0:02:16.9]} 17... Bxa4 {[%clk 0:02:11.4]} 18.
Bxa7 {[%clk 0:02:15.8]} 18... f6 {[%clk 0:02:11.2]} 19. exf6 {[%clk 0:02:14.4]}
19... Qxf6 {[%clk 0:02:10.6]} 20. g3 {[%clk 0:02:10.4]} 20... Qf5 {[%clk
0:02:03.2]} 21. Bd4 {[%clk 0:02:06.7]} 21... Nb8 {[%clk 0:01:36]} 22. Bxg7
{[%clk 0:02:01.6]} 22... Kxg7 {[%clk 0:01:36.9]} 23. Qd4+ {[%clk 0:02:00.3]} 1-0

[Event "*** Titled Tuesday Blitz"]
[Site "Chess.com"]
[Date "2020.03.03"]
[Round "4"]
[White "guillembaches"]
[Black "Funkmaus"]
[Result "1/2-1/2"]
[WhiteElo "2397"]
[BlackElo "2227"]
[TimeControl "180+1"]
[EndTime "9:38:16 PST"]
[Termination "Game drawn by agreement"]

1. e4 {[%clk 0:03:00.9]} 1... c6 {[%clk 0:02:59.9]} 2. c4 {[%clk 0:02:59.3]}
2... d5 {[%clk 0:03:00.8]} 3. exd5 {[%clk 0:02:59.8]} 3... cxd5 {[%clk
0:03:01.2]} 4. cxd5 {[%clk 0:03:00.4]} 4... Nf6 {[%clk 0:03:01.4]} 5. Nc3 {[%clk
0:03:00.8]} 5... Nxd5 {[%clk 0:02:58.6]} 6. Nf3 {[%clk 0:03:01.2]} 6... g6
{[%clk 0:02:49]} 7. Bc4 {[%clk 0:02:56.3]} 7... Nxc3 {[%clk 0:02:40.9]} 8. bxc3
{[%clk 0:02:56.3]} 8... Bg7 {[%clk 0:02:37.2]} 9. h4 {[%clk 0:02:53.1]} 9... h5
{[%clk 0:02:33.8]} 10. Qb3 {[%clk 0:02:50.8]} 10... O-O {[%clk 0:02:25.2]} 11.
Ng5 {[%clk 0:02:49.7]} 11... e6 {[%clk 0:02:21.8]} 12. Ba3 {[%clk 0:02:48.2]}
12... Re8 {[%clk 0:02:16.3]} 13. d4 {[%clk 0:02:43.9]} 13... Nc6 {[%clk
0:02:16.3]} 14. Bb5 {[%clk 0:02:42.5]} 14... Bd7 {[%clk 0:02:12.1]} 15. Qd1
{[%clk 0:02:31.8]} 15... a6 {[%clk 0:02:05]} 16. Bd3 {[%clk 0:02:22.6]} 16...
Nxd4 {[%clk 0:01:59.8]} 17. O-O {[%clk 0:02:11.7]} 17... Nf5 {[%clk 0:01:56.3]}
18. Rb1 {[%clk 0:02:00.1]} 18... Bc6 {[%clk 0:01:50.9]} 19. Be4 {[%clk
0:01:47.7]} 1/2-1/2

[Event "*** Titled Tuesday Blitz"]
[Site "Chess.com"]
[Date "2020.03.03"]
[Round "4"]
[White "bangchess21"]
[Black "TwentyHourADay"]
[Result "1-0"]
[WhiteElo "2598"]
[BlackElo "2306"]
[TimeControl "180+1"]
[EndTime "9:38:21 PST"]
[Termination "bangchess21 won by resignation"]

1. d4 {[%clk 0:03:00.8]} 1... g6 {[%clk 0:03:00.9]} 2. e4 {[%clk 0:03:00.1]}
2... Bg7 {[%clk 0:03:00.8]} 3. Nc3 {[%clk 0:03:00.4]} 3... d6 {[%clk 0:03:00.9]}
4. Nf3 {[%clk 0:03:00.3]} 4... a6 {[%clk 0:02:59.8]} 5. a4 {[%clk 0:03:00]} 5...
b6 {[%clk 0:03:00.2]} 6. h3 {[%clk 0:02:58.3]} 6... e6 {[%clk 0:02:59.9]} 7. Bc4
{[%clk 0:02:54.8]} 7... h6 {[%clk 0:03:00]} 8. Bb3 {[%clk 0:02:53.3]} 8... Ne7
{[%clk 0:02:58.6]} 9. O-O {[%clk 0:02:53.6]} 9... Bb7 {[%clk 0:02:58.1]} 10. Bf4
{[%clk 0:02:44.8]} 10... Nd7 {[%clk 0:02:56.9]} 11. Bh2 {[%clk 0:02:44.4]} 11...
O-O {[%clk 0:02:54.4]} 12. Qd2 {[%clk 0:02:44.1]} 12... Nf6 {[%clk 0:02:52.2]}
13. Rfe1 {[%clk 0:02:41.6]} 13... Kh7 {[%clk 0:02:39.9]} 14. Qe3 {[%clk
0:02:37]} 14... Qe8 {[%clk 0:02:01.8]} 15. Rad1 {[%clk 0:02:35.3]} 15... Rd8
{[%clk 0:02:00.2]} 16. Qe2 {[%clk 0:02:30]} 16... Nc6 {[%clk 0:01:47.6]} 17. Bg3
{[%clk 0:02:15.9]} 17... e5 {[%clk 0:01:39]} 18. dxe5 {[%clk 0:02:08.7]} 18...
Nxe5 {[%clk 0:01:33.2]} 19. Nxe5 {[%clk 0:01:57.6]} 19... dxe5 {[%clk
0:01:33.2]} 20. Rxd8 {[%clk 0:01:58.2]} 20... Qxd8 {[%clk 0:01:33.2]} 21. Bxe5
{[%clk 0:01:58.6]} 21... Nxe4 {[%clk 0:01:33.4]} 22. Bxg7 {[%clk 0:01:57.7]} 1-0

[Event "*** Titled Tuesday Blitz"]
[Site "Chess.com"]
[Date "2020.03.03"]
[Round "4"]
[White "marcodobrikov"]
[Black "Elshan1985"]
[Result "1-0"]
[WhiteElo "2573"]
[BlackElo "2717"]
[TimeControl "180+1"]
[EndTime "9:38:33 PST"]
[Termination "marcodobrikov won by resignation"]

1. e4 {[%clk 0:03:00.9]} 1... e6 {[%clk 0:02:59.8]} 2. d4 {[%clk 0:03:00.8]}
2... d5 {[%clk 0:03:00.7]} 3. Nc3 {[%clk 0:03:00.9]} 3... Nf6 {[%clk 0:03:01.1]}
4. Bg5 {[%clk 0:02:57.7]} 4... dxe4 {[%clk 0:03:01.3]} 5. Nxe4 {[%clk
0:02:57.4]} 5... Be7 {[%clk 0:03:01.9]} 6. Bxf6 {[%clk 0:02:56.1]} 6... gxf6
{[%clk 0:03:02.8]} 7. Nf3 {[%clk 0:02:55.6]} 7... f5 {[%clk 0:03:02.8]} 8. Nc3
{[%clk 0:02:55.2]} 8... a6 {[%clk 0:02:59]} 9. Qd2 {[%clk 0:02:55.4]} 9... b5
{[%clk 0:02:58.6]} 10. O-O-O {[%clk 0:02:54.1]} 10... Qd6 {[%clk 0:02:56.5]} 11.
Kb1 {[%clk 0:02:49.7]} 11... Nd7 {[%clk 0:02:48.3]} 12. Be2 {[%clk 0:02:41.1]}
12... Bb7 {[%clk 0:02:44.9]} 13. Rhg1 {[%clk 0:02:38.2]} 13... O-O-O {[%clk
0:02:39.3]} 14. Qe3 {[%clk 0:02:34.6]} 14... h5 {[%clk 0:02:28.2]} 15. Ne5
{[%clk 0:02:31.7]} 15... Nxe5 {[%clk 0:02:25.7]} 16. dxe5 {[%clk 0:02:32.6]}
16... Qc5 {[%clk 0:02:22.3]} 17. Rxd8+ {[%clk 0:02:25.2]} 17... Kxd8 {[%clk
0:02:22.5]} 18. Qg3 {[%clk 0:02:22.4]} 18... h4 {[%clk 0:02:12.3]} 19. Qg7
{[%clk 0:02:19.9]} 19... Rf8 {[%clk 0:02:10.7]} 20. Rd1+ {[%clk 0:02:17.9]}
20... Kc8 {[%clk 0:02:03]} 21. Bh5 {[%clk 0:02:10.1]} 21... b4 {[%clk
0:01:57.5]} 22. Na4 {[%clk 0:02:05.5]} 22... Qc6 {[%clk 0:01:34.5]} 23. Bxf7
{[%clk 0:02:00.4]} 23... Rd8 {[%clk 0:01:34.2]} 24. Rxd8+ {[%clk 0:01:56.7]}
24... Bxd8 {[%clk 0:01:34.1]} 25. Qg8 {[%clk 0:01:50.2]} 25... Kd7 {[%clk
0:01:20]} 26. Bxe6+ {[%clk 0:01:47.8]} 1-0